[Event "2nd Asian Nations Team Cup U14 2019"]
[Site "Shenzhen"]
[Date "2019.12.23"]
[Round "6.18"]
[White "Meng, Yihan"]
[Black "Zhang, Yuanxiao"]
[Result "1-0"]
[ECO "C54"]
[WhiteElo "1787"]
[BlackElo "1545"]
[Annotator "NA RC"]
[PlyCount "87"]
[EventDate "2019.12.19"]
[EventType "team-tourn"]
[EventCountry "CHN"]
[SourceTitle "playchess.com"]
[Source "ChessBase"]
[SourceQuality "1"]
[WhiteTeam "China"]
[BlackTeam "China"]
[WhiteTeamCountry "CHN"]
[BlackTeamCountry "CHN"]
[TimeControl "5400+30"]

1. e4 {[%emt 0:00:00]} e5 {[%emt 0:00:00]} 2. Nf3 {[%emt 0:00:00]} Nc6 {[%emt 0:00:00]} 3. Bc4 {[%emt 0:00:00]} Bc5 {[%emt 0:00:00]} 4. c3 {[%emt 0:00:00]} Nf6 {[%emt 0:00:00]} 5. d3 {[%emt 0:00:00]} d6 {[%emt 0:00:25]} 6. O-O {[%emt 0:00:00]} O-O {[%emt 0:00:10]} 7. Nbd2 {[%emt 0:00:15]} Be6 {[%emt 0:03:22]} 8. Bb3 {[%emt 0:00:22]} d5 {[%emt 0:09:56]} 9. Qe2 {[%emt 0:02:50]} Re8 {[%emt 0:07:07]} 10. exd5 {[%emt 0:01:40]} Bxd5 {[%emt 0:00:58]} 11. Ne4 {[%emt 0:00:38]} Nxe4 {[%emt 0:00:54]} 12. dxe4 {[%emt 0:00:21]} Bxb3 {[%emt 0:05:41]} 13. axb3 {[%emt 0:00:04]} a6 {[%emt 0:00:32]} 14. Bg5 {[%emt 0:01:08]} Qd6 {[%emt 0:05:54]} 15. Nh4 {[%emt 0:03:40]} Qe6 {[%emt 0:01:33]} 16. Nf5 {[%emt 0:03:21]} Qxb3 {[%emt 0:07:10]} 17. Bf6 {[%emt 0:07:42]} Qe6 {[%emt 0:14:45]} 18. Bxg7 {[%emt 0:00:29]} Ne7 {[%emt 0:02:28]} 19. Qf3 {[%emt 0:05:07]} c6 {[%emt 0:16:58]} 20. b4 {[%emt 0:04:50]} Bb6 {[%emt 0:00:23]} 21. h4 {[%emt 0:02:59]} Bc7 {[%emt 0:04:42]} 22. h5 {[%emt 0:01:07]} h6 {[%emt 0:00:30]} 23. Nxe7+ {[%emt 0:11:33]} Kxg7 {[%emt 0:01:09]} 24. Nf5+ {[%emt 0:00:07]} Kh7 {[%emt 0:00:14]} 25. Rfd1 {[%emt 0:00:23]} Red8 {[%emt 0:01:17]} 26. Qe3 {[%emt 0:01:37]} Rxd1+ {[%emt 0:06:13]} 27. Rxd1 {[%emt 0:00:02]} a5 {[%emt 0:01:50]} 28. bxa5 {[%emt 0:02:28]} Rxa5 {[%emt 0:01:01]} 29. Rd7 {[%emt 0:00:36]} Bb6 {[%emt 0:02:55]} 30. Qg3 {[%emt 0:01:52]} Qf6 {[%emt 0:01:38]} 31. Rd6 {[%emt 0:01:36]} Ra1+ {[%emt 0:02:28]} 32. Kh2 {[%emt 0:00:02]} Bxf2 {[%emt 0:01:01]} 33. Rxf6 {[%emt 0:02:17]} Bxg3+ {[%emt 0:00:13]} 34. Kxg3 {[%emt 0:00:02]} Ra3 {[%emt 0:00:36]} 35. Rxf7+ {[%emt 0:00:02]} Kh8 {[%emt 0:00:11]} 36. Rxb7 {[%emt 0:00:29]} Rxc3+ {[%emt 0:00:06]} 37. Kg4 {[%emt 0:00:02]} Rc4 {[%emt 0:00:56]} 38. Nxh6 {[%emt 0:00:07]} Rxe4+ {[%emt 0:00:29]} 39. Kf5 {[%emt 0:00:54]} Re2 {[%emt 0:00:29]} 40. g4 {[%emt 0:00:06]} Rd2 {[%emt 0:00:24]} 41. Nf7+ {[%emt 0:00:27]} Kg7 {[%emt 0:00:53]} 42. Nxe5+ {[%emt 0:01:02]} Kg8 {[%emt 0:00:52]} 43. h6 {[%emt 0:00:12]} Rd1 {[%emt 0:01:35]} 44. h7+ {[%emt 0:00:03]} 1-0

[Event "2nd Asian Nations Team Cup U14 2019"]
[Site "Shenzhen"]
[Date "2019.12.24"]
[Round "7.2"]
[White "Lam, Chun Yung Samuel"]
[Black "Wei, Jianzhou"]
[Result "0-1"]
[ECO "A07"]
[WhiteElo "1288"]
[BlackElo "1755"]
[Annotator "NA RC"]
[PlyCount "150"]
[EventDate "2019.12.19"]
[EventType "team-tourn"]
[EventCountry "CHN"]
[SourceTitle "playchess.com"]
[Source "ChessBase"]
[SourceQuality "1"]
[WhiteTeam "Hong Kong"]
[BlackTeam "China"]
[WhiteTeamCountry "HKG"]
[BlackTeamCountry "CHN"]
[TimeControl "5400+30"]

1. Nf3 {[%emt 0:00:00]} d5 {[%emt 0:00:00]} 2. g3 {[%emt 0:00:00]} Nf6 {[%emt 0:00:00]} 3. Bg2 {[%emt 0:00:00]} c6 {[%emt 0:00:01]} 4. O-O {[%emt 0:00:00]} Bf5 {[%emt 0:00:04]} 5. d3 h6 {[%emt 0:00:43]} 6. Nbd2 {[%emt 0:00:09]} e6 {[%emt 0:00:29]} 7. Qe1 {[%emt 0:00:08]} Be7 {[%emt 0:02:19]} 8. e4 {[%emt 0:00:09]} dxe4 {[%emt 0:03:37]} 9. dxe4 {[%emt 0:00:18]} Bh7 {[%emt 0:00:10]} 10. Qe2 {[%emt 0:01:16]} O-O {[%emt 0:02:12]} 11. Re1 {[%emt 0:00:54]} Nbd7 {[%emt 0:01:58]} 12. c3 {[%emt 0:00:29]} Nc5 {[%emt 0:01:53]} 13. e5 {[%emt 0:00:10]} Nd5 {[%emt 0:02:06]} 14. Nf1 {[%emt 0:03:59]} Qc7 {[%emt 0:06:44]} 15. h4 {[%emt 0:03:29]} Rad8 16. Nd4 {[%emt 0:01:25]} Nd3 {[%emt 0:10:58]} 17. Rd1 {[%emt 0:06:53]} Qxe5 {[%emt 0:03:20]} 18. Qg4 {[%emt 0:05:53]} Nf6 {[%emt 0:08:09]} 19. Qf3 {[%emt 0:00:55]} c5 {[%emt 0:06:45]} 20. Nb3 {[%emt 0:12:07]} Be4 {[%emt 0:08:24]} 21. Qe3 {[%emt 0:01:40]} c4 {[%emt 0:00:35]} 22. Nd4 {[%emt 0:01:24]} Bc5 {[%emt 0:02:08]} 23. Nd2 {[%emt 0:04:27]} Bxg2 {[%emt 0:03:39]} 24. Kxg2 {[%emt 0:12:49]} Qd5+ {[%emt 0:04:56]} 25. N2f3 {[%emt 0:00:51]} e5 {[%emt 0:01:04]} 26. Nf5 {[%emt 0:02:39]} Bxe3 {[%emt 0:04:31]} 27. Ne7+ {[%emt 0:00:06]} Kh8 {[%emt 0:00:57]} 28. Nxd5 {[%emt 0:00:04]} Bxc1 {[%emt 0:00:32]} 29. Nxf6 {[%emt 0:00:25]} Nf4+ {[%emt 0:03:17]} 30. gxf4 {[%emt 0:00:10]} Rxd1 {[%emt 0:00:02]} 31. Ne4 {[%emt 0:04:15]} exf4 {[%emt 0:01:51]} 32. Nd4 {[%emt 0:01:49]} Rd8 {[%emt 0:06:49]} 33. f3 {[%emt 0:00:21]} R1xd4 {[%emt 0:02:13]} 34. cxd4 {[%emt 0:00:35]} Bxb2 {[%emt 0:00:02]} 35. Rb1 {[%emt 0:02:08]} c3 {[%emt 0:00:17]} 36. Nxc3 {[%emt 0:00:22]} Bxc3 {[%emt 0:00:19]} 37. Rxb7 {[%emt 0:00:09]} Bxd4 {[%emt 0:01:05]} 38. Rxf7 {[%emt 0:00:19]} Be3 {[%emt 0:00:04]} 39. a4 {[%emt 0:00:49]} Rd2+ {[%emt 0:00:07]} 40. Kh3 {[%emt 0:00:04]} Ra2 {[%emt 0:00:06]} 41. Kg4 {[%emt 0:00:16]} Rxa4 {[%emt 0:00:16]} 42. Kf5 {[%emt 0:00:48]} Kh7 {[%emt 0:00:09]} 43. h5 {[%emt 0:01:20]} Ra5+ {[%emt 0:00:07]} 44. Kg4 {[%emt 0:00:12]} Rg5+ {[%emt 0:00:26]} 45. Kh4 {[%emt 0:00:29]} a5 {[%emt 0:00:04]} 46. Rf8 {[%emt 0:00:12]} Bf2+ {[%emt 0:00:36]} 47. Kh3 {[%emt 0:00:09]} Rxh5+ {[%emt 0:00:11]} 48. Kg4 {[%emt 0:00:12]} Rh4+ {[%emt 0:00:34]} 49. Kf5 {[%emt 0:00:32]} Be3 {[%emt 0:00:55]} 50. Ra8 {[%emt 0:01:40]} Rh5+ {[%emt 0:00:05]} 51. Kg4 {[%emt 0:00:11]} Rb5 {[%emt 0:00:04]} 52. Kh4 {[%emt 0:00:44]} h5 {[%emt 0:00:44]} 53. Ra6 {[%emt 0:00:31]} Bf2+ {[%emt 0:00:37]} 54. Kh3 {[%emt 0:00:11]} Be1 {[%emt 0:00:17]} 55. Ra7 {[%emt 0:01:05]} Rg5 {[%emt 0:00:55]} 56. Ra6 {[%emt 0:00:29]} Rg3+ {[%emt 0:00:15]} 57. Kh2 {[%emt 0:00:22]} Rxf3 {[%emt 0:00:06]} 58. Ra7 {[%emt 0:00:05]} Bg3+ {[%emt 0:00:12]} 59. Kg2 {[%emt 0:00:13]} Rf2+ {[%emt 0:00:05]} 60. Kg1 {[%emt 0:00:40]} Ra2 {[%emt 0:00:08]} 61. Rb7 {[%emt 0:00:58]} h4 {[%emt 0:00:12]} 62. Rb5 {[%emt 0:00:30]} Kg6 {[%emt 0:00:10]} 63. Rb6+ {[%emt 0:01:36]} Kg5 {[%emt 0:00:06]} 64. Rb1 {[%emt 0:00:17]} Kg4 {[%emt 0:00:05]} 65. Rd1 {[%emt 0:00:09]} f3 {[%emt 0:00:17]} 66. Kh1 {[%emt 0:02:00]} Rh2+ {[%emt 0:00:06]} 67. Kg1 {[%emt 0:00:06]} f2+ {[%emt 0:00:03]} 68. Kf1 {[%emt 0:00:04]} Rh1+ {[%emt 0:00:11]} 69. Kg2 {[%emt 0:00:05]} Rg1+ {[%emt 0:00:46]} 70. Rxg1 {[%emt 0:00:20]} fxg1=Q+ {[%emt 0:00:09]} 71. Kxg1 {[%emt 0:00:06]} Kf3 {[%emt 0:00:19]} 72. Kh1 {[%emt 0:00:06]} a4 {[%emt 0:00:12]} 73. Kg1 {[%emt 0:00:02]} a3 {[%emt 0:00:05]} 74. Kh1 {[%emt 0:00:02]} a2 {[%emt 0:00:03]} 75. Kg1 {[%emt 0:00:04]} a1=R# {[%emt 0:00:06]} 0-1

[Event "2nd Asian Nations Team Cup U14 2019"]
[Site "Shenzhen"]
[Date "2019.12.24"]
[Round "7.3"]
[White "Meng, Yihan"]
[Black "Li, Yucheng Robinson"]
[Result "1-0"]
[ECO "B22"]
[WhiteElo "1787"]
[BlackElo "1185"]
[Annotator "NA RC"]
[PlyCount "123"]
[EventDate "2019.12.19"]
[EventType "team-tourn"]
[EventCountry "CHN"]
[SourceTitle "playchess.com"]
[Source "ChessBase"]
[SourceQuality "1"]
[WhiteTeam "China"]
[BlackTeam "Hong Kong"]
[WhiteTeamCountry "CHN"]
[BlackTeamCountry "HKG"]
[TimeControl "5400+30"]

1. e4 {[%emt 0:06:26]} c5 {[%emt 0:00:00]} 2. Nf3 Nc6 {[%emt 0:00:44]} 3. c3 {[%emt 0:00:00]} d6 {[%emt 0:00:23]} 4. d4 {[%emt 0:00:00]} cxd4 {[%emt 0:00:19]} 5. cxd4 {[%emt 0:00:00]} Bg4 {[%emt 0:00:05]} 6. d5 {[%emt 0:00:00]} Nb8 {[%emt 0:00:33]} 7. h3 {[%emt 0:00:00]} Bxf3 {[%emt 0:00:09]} 8. Qxf3 {[%emt 0:00:00]} Nd7 {[%emt 0:00:07]} 9. Nc3 {[%emt 0:00:00]} Ngf6 {[%emt 0:00:10]} 10. Bd3 {[%emt 0:00:00]} g6 {[%emt 0:00:20]} 11. O-O {[%emt 0:00:00]} Bg7 {[%emt 0:00:11]} 12. Qe2 {[%emt 0:00:00]} O-O {[%emt 0:00:24]} 13. f4 {[%emt 0:00:00]} Nc5 {[%emt 0:00:23]} 14. Bc2 {[%emt 0:00:00]} Nfd7 {[%emt 0:01:34]} 15. h4 {[%emt 0:00:40]} Nb6 {[%emt 0:00:00]} 16. h5 {[%emt 0:00:50]} e6 {[%emt 0:00:04]} 17. hxg6 {[%emt 0:00:45]} hxg6 {[%emt 0:00:26]} 18. Rd1 {[%emt 0:12:14]} exd5 {[%emt 0:00:41]} 19. Nxd5 {[%emt 0:03:37]} Nxd5 {[%emt 0:01:52]} 20. Rxd5 {[%emt 0:00:01]} Qb6 {[%emt 0:00:59]} 21. Be3 {[%emt 0:00:07]} Qxb2 {[%emt 0:01:29]} 22. Rb1 {[%emt 0:00:08]} Qxa2 23. Rxd6 {[%emt 0:03:14]} Nxe4 {[%emt 0:04:29]} 24. Rxg6 {[%emt 0:00:25]} Qxb1+ {[%emt 0:02:28]} 25. Bxb1 {[%emt 0:00:09]} fxg6 {[%emt 0:00:08]} 26. Bxe4 {[%emt 0:01:44]} Rf6 {[%emt 0:02:06]} 27. Bxb7 {[%emt 0:00:54]} Rb8 {[%emt 0:01:11]} 28. Qa2+ {[%emt 0:02:49]} Kh8 {[%emt 0:00:18]} 29. Qxa7 {[%emt 0:00:09]} Re8 {[%emt 0:00:25]} 30. Bd4 {[%emt 0:00:46]} Rf7 {[%emt 0:00:29]} 31. Bxg7+ {[%emt 0:00:14]} Rxg7 {[%emt 0:00:23]} 32. Qd4 {[%emt 0:00:18]} Kh7 {[%emt 0:00:06]} 33. Bf3 {[%emt 0:00:25]} Rge7 {[%emt 0:00:23]} 34. Qf6 {[%emt 0:00:30]} Re1+ {[%emt 0:02:17]} 35. Kf2 {[%emt 0:00:38]} R1e7 {[%emt 0:00:45]} 36. Kg3 {[%emt 0:00:34]} Ra7 {[%emt 0:01:19]} 37. f5 {[%emt 0:02:10]} gxf5 {[%emt 0:01:44]} 38. Qxf5+ {[%emt 0:01:00]} Kg7 {[%emt 0:01:41]} 39. Qg5+ {[%emt 0:00:00]} Kf8 {[%emt 0:00:56]} 40. Qc5+ {[%emt 0:00:03]} Ree7 {[%emt 0:00:11]} 41. Kh4 {[%emt 0:01:09]} Ra4+ {[%emt 0:00:27]} 42. Kg5 {[%emt 0:00:11]} Raa7 {[%emt 0:00:23]} 43. Kf6 {[%emt 0:00:20]} Ra6+ {[%emt 0:00:07]} 44. Bc6 {[%emt 0:00:07]} Raa7 {[%emt 0:00:05]} 45. Qd6 {[%emt 0:00:26]} Kg8 {[%emt 0:00:09]} 46. Qd8+ {[%emt 0:00:13]} Kh7 {[%emt 0:00:07]} 47. Qxe7+ {[%emt 0:00:08]} Rxe7 {[%emt 0:00:07]} 48. Kxe7 {[%emt 0:00:02]} Kg6 {[%emt 0:00:28]} 49. Ke6 {[%emt 0:00:58]} Kg5 {[%emt 0:00:29]} 50. Bf3 {[%emt 0:00:14]} Kf4 {[%emt 0:00:08]} 51. Kf6 {[%emt 0:00:02]} Kg3 {[%emt 0:00:15]} 52. Kf5 {[%emt 0:00:03]} Kh4 {[%emt 0:00:07]} 53. g4 {[%emt 0:00:04]} Kg3 {[%emt 0:00:18]} 54. g5 {[%emt 0:00:41]} Kxf3 {[%emt 0:02:26]} 55. g6 {[%emt 0:00:12]} Ke3 {[%emt 0:00:21]} 56. g7 {[%emt 0:00:02]} Kf3 {[%emt 0:00:17]} 57. g8=Q {[%emt 0:00:36]} Ke3 {[%emt 0:00:30]} 58. Qc4 {[%emt 0:00:30]} Kf3 {[%emt 0:00:04]} 59. Qd3+ {[%emt 0:00:03]} Kf2 {[%emt 0:00:12]} 60. Kg4 {[%emt 0:00:03]} Kg1 {[%emt 0:00:09]} 61. Kg3 {[%emt 0:00:03]} Kh1 {[%emt 0:00:16]} 62. Qf1# {[%emt 0:00:03]} 1-0

[Event "2nd Asian Nations Team Cup U14 2019"]
[Site "Shenzhen"]
[Date "2019.12.24"]
[Round "7.4"]
[White "Huang, Yuen Tung"]
[Black "Zhao, Yunqing"]
[Result "1/2-1/2"]
[ECO "B52"]
[WhiteElo "1293"]
[BlackElo "1542"]
[Annotator "NA RC"]
[PlyCount "105"]
[EventDate "2019.12.19"]
[EventType "team-tourn"]
[EventCountry "CHN"]
[SourceTitle "playchess.com"]
[Source "ChessBase"]
[SourceQuality "1"]
[WhiteTeam "Hong Kong"]
[BlackTeam "China"]
[WhiteTeamCountry "HKG"]
[BlackTeamCountry "CHN"]
[TimeControl "5400+30"]

1. e4 {[%emt 0:00:00]} c5 {[%emt 0:00:00]} 2. Nf3 {[%emt 0:00:00]} d6 {[%emt 0:00:00]} 3. Bb5+ {[%emt 0:00:00]} Bd7 {[%emt 0:00:00]} 4. Bxd7+ Qxd7 {[%emt 0:00:00]} 5. Nc3 {[%emt 0:00:04]} Nf6 {[%emt 0:00:00]} 6. O-O {[%emt 0:00:08]} g6 7. d3 {[%emt 0:00:18]} Bg7 {[%emt 0:00:01]} 8. h3 {[%emt 0:00:46]} O-O {[%emt 0:00:18]} 9. Bg5 {[%emt 0:00:04]} Nc6 {[%emt 0:00:25]} 10. Qd2 {[%emt 0:00:10]} Rab8 {[%emt 0:00:23]} 11. Rad1 {[%emt 0:00:45]} b5 {[%emt 0:00:26]} 12. a3 {[%emt 0:00:19]} a5 {[%emt 0:00:18]} 13. Ne2 {[%emt 0:03:05]} b4 {[%emt 0:01:16]} 14. a4 {[%emt 0:08:47]} Rfc8 {[%emt 0:01:12]} 15. b3 {[%emt 0:01:53]} Rb7 {[%emt 0:06:17]} 16. Ng3 {[%emt 0:01:27]} Nd4 {[%emt 0:01:13]} 17. Nh2 {[%emt 0:01:33]} Qc6 {[%emt 0:12:50]} 18. Ne2 {[%emt 0:18:17]} Qb6 {[%emt 0:06:04]} 19. Rfe1 {[%emt 0:00:46]} h5 {[%emt 0:00:00]} 20. Nf1 {[%emt 0:10:35]} Nh7 {[%emt 0:07:45]} 21. Be3 {[%emt 0:08:26]} Nf8 {[%emt 0:04:39]} 22. Nf4 {[%emt 0:01:35]} e6 {[%emt 0:00:00]} 23. Rc1 {[%emt 0:05:50]} Nd7 {[%emt 0:00:55]} 24. f3 {[%emt 0:01:11]} Ne5 {[%emt 0:01:04]} 25. Qf2 {[%emt 0:01:57]} Kh7 {[%emt 0:00:00]} 26. Nd2 {[%emt 0:06:29]} Qd8 {[%emt 0:00:00]} 27. Ne2 {[%emt 0:00:36]} Nec6 {[%emt 0:00:00]} 28. Kh1 {[%emt 0:02:02]} Nxe2 {[%emt 0:00:00]} 29. Rxe2 {[%emt 0:00:16]} Nd4 {[%emt 0:00:00]} 30. Ree1 {[%emt 0:00:37]} d5 {[%emt 0:00:11]} 31. f4 {[%emt 0:02:35]} Rbc7 {[%emt 0:02:36]} 32. Nf3 {[%emt 0:04:03]} Nxf3 {[%emt 0:00:58]} 33. Qxf3 {[%emt 0:01:03]} d4 {[%emt 0:01:26]} 34. Bf2 {[%emt 0:00:23]} Qd7 {[%emt 0:00:53]} 35. Rf1 {[%emt 0:02:08]} Re8 {[%emt 0:02:22]} 36. Bg3 {[%emt 0:01:42]} f5 {[%emt 0:00:46]} 37. e5 {[%emt 0:00:41]} Qc6 {[%emt 0:01:30]} 38. Qxc6 {[%emt 0:01:43]} Rxc6 {[%emt 0:00:04]} 39. h4 {[%emt 0:00:09]} Kg8 {[%emt 0:00:20]} 40. Kg1 {[%emt 0:00:26]} Bh6 {[%emt 0:00:15]} 41. Rf3 {[%emt 0:00:37]} Rd8 {[%emt 0:00:08]} 42. Kf2 {[%emt 0:00:13]} Rd5 {[%emt 0:00:16]} 43. Rd1 {[%emt 0:00:47]} Rc8 {[%emt 0:00:18]} 44. Kf1 {[%emt 0:00:35]} Kf7 {[%emt 0:00:13]} 45. Ke2 {[%emt 0:00:18]} Rcd8 {[%emt 0:00:14]} 46. Ke1 {[%emt 0:00:21]} R8d7 {[%emt 0:00:28]} 47. Ke2 {[%emt 0:00:10]} Rc7 {[%emt 0:00:05]} 48. Ke1 {[%emt 0:00:39]} Rc8 {[%emt 0:00:36]} 49. Ke2 {[%emt 0:00:05]} Bf8 {[%emt 0:00:19]} 50. Ke1 {[%emt 0:00:20]} Be7 {[%emt 0:00:04]} 51. Ke2 {[%emt 0:00:15]} Rdd8 {[%emt 0:00:37]} 52. Ke1 {[%emt 0:00:26]} Rc6 {[%emt 0:00:12]} 53. Kf1 {[%emt 0:00:15]} 1/2-1/2

[Event "2nd Asian Nations Team Cup U14 2019"]
[Site "Shenzhen"]
[Date "2019.12.24"]
[Round "7.5"]
[White "Yeoh, Yuan Hui"]
[Black "Wang, Benchi"]
[Result "0-1"]
[ECO "E83"]
[WhiteElo "1738"]
[BlackElo "1747"]
[Annotator "NA RC"]
[PlyCount "100"]
[EventDate "2019.12.19"]
[EventType "team-tourn"]
[EventCountry "CHN"]
[SourceTitle "playchess.com"]
[Source "ChessBase"]
[SourceQuality "1"]
[WhiteTeam "Malaysia"]
[BlackTeam "China"]
[WhiteTeamCountry "MAS"]
[BlackTeamCountry "CHN"]
[TimeControl "5400+30"]

1. d4 {[%emt 0:00:00]} Nf6 {[%emt 0:00:00]} 2. c4 {[%emt 0:00:00]} g6 {[%emt 0:00:45]} 3. Nc3 {[%emt 0:00:00]} Bg7 {[%emt 0:00:10]} 4. e4 {[%emt 0:00:00]} d6 {[%emt 0:00:03]} 5. f3 {[%emt 0:00:00]} O-O {[%emt 0:00:04]} 6. Be3 {[%emt 0:00:00]} Nc6 {[%emt 0:00:10]} 7. Nge2 {[%emt 0:00:18]} a6 {[%emt 0:00:32]} 8. Qd2 {[%emt 0:02:37]} Na5 {[%emt 0:00:17]} 9. Nc1 {[%emt 0:01:17]} Nd7 {[%emt 0:03:31]} 10. b4 {[%emt 0:07:36]} Nc6 {[%emt 0:00:10]} 11. a3 {[%emt 0:00:14]} e5 {[%emt 0:00:29]} 12. Nb3 {[%emt 0:06:47]} exd4 13. Nxd4 {[%emt 0:00:07]} a5 {[%emt 0:12:08]} 14. Rb1 {[%emt 0:15:57]} axb4 {[%emt 0:01:59]} 15. axb4 {[%emt 0:00:17]} Nxd4 {[%emt 0:02:54]} 16. Bxd4 {[%emt 0:00:11]} Ne5 {[%emt 0:00:03]} 17. Be2 {[%emt 0:05:32]} Be6 {[%emt 0:01:35]} 18. Nd5 {[%emt 0:02:34]} c6 {[%emt 0:08:38]} 19. Nb6 {[%emt 0:04:33]} Ra6 {[%emt 0:02:32]} 20. Qe3 {[%emt 0:12:54]} Nxf3+ {[%emt 0:02:51]} 21. gxf3 {[%emt 0:17:42]} Bxd4 {[%emt 0:00:07]} 22. Qxd4 {[%emt 0:00:05]} Qxb6 {[%emt 0:00:55]} 23. Qxd6 {[%emt 0:04:39]} Rd8 {[%emt 0:13:17]} 24. Qf4 {[%emt 0:00:40]} Qd4 {[%emt 0:01:53]} 25. Qc1 {[%emt 0:06:36]} Ra2 {[%emt 0:04:13]} 26. Rf1 {[%emt 0:06:50]} Rxe2+ {[%emt 0:06:13]} 27. Kxe2 {[%emt 0:00:09]} Bxc4+ {[%emt 0:00:02]} 28. Ke1 {[%emt 0:00:18]} Bxf1 {[%emt 0:00:05]} 29. Kxf1 {[%emt 0:00:33]} Ra8 {[%emt 0:00:41]} 30. Qc2 {[%emt 0:04:21]} Qe3 {[%emt 0:01:31]} 31. Kg2 {[%emt 0:00:26]} Ra3 {[%emt 0:01:42]} 32. Rf1 {[%emt 0:01:52]} Rd3 {[%emt 0:01:30]} 33. Rf2 {[%emt 0:00:29]} Rc3 {[%emt 0:01:28]} 34. Qa2 {[%emt 0:00:36]} Qg5+ {[%emt 0:00:22]} 35. Kf1 {[%emt 0:00:47]} Rc1+ {[%emt 0:00:15]} 36. Ke2 {[%emt 0:00:05]} Qb5+ {[%emt 0:02:57]} 37. Kd2 {[%emt 0:00:01]} Rc4 {[%emt 0:00:38]} 38. Qa8+ {[%emt 0:00:50]} Kg7 {[%emt 0:00:10]} 39. Qe8 {[%emt 0:00:46]} Qxb4+ {[%emt 0:00:11]} 40. Ke3 {[%emt 0:00:42]} Qc5+ {[%emt 0:00:59]} 41. Kf4 {[%emt 0:00:08]} Qxf2 {[%emt 0:01:17]} 42. Qe5+ {[%emt 0:00:02]} f6 {[%emt 0:00:24]} 43. Qe7+ {[%emt 0:00:13]} Kh6 {[%emt 0:00:12]} 44. Qf8+ {[%emt 0:00:08]} Kh5 {[%emt 0:00:04]} 45. Qxf6 {[%emt 0:00:14]} Qd2+ {[%emt 0:02:00]} 46. Kg3 {[%emt 0:00:15]} Qg5+ {[%emt 0:00:05]} 47. Qxg5+ {[%emt 0:00:12]} Kxg5 {[%emt 0:00:03]} 48. f4+ {[%emt 0:00:06]} Kf6 {[%emt 0:00:03]} 49. e5+ {[%emt 0:00:05]} Kf5 {[%emt 0:00:03]} 50. e6 {[%emt 0:00:07]} Kxe6 {[%emt 0:00:14]} 0-1

[Event "2nd Asian Nations Team Cup U14 2019"]
[Site "Shenzhen"]
[Date "2019.12.24"]
[Round "7.6"]
[White "Zhang, Yuanxiao"]
[Black "Foo, Jiu Yarng Clarance"]
[Result "1-0"]
[ECO "B22"]
[WhiteElo "1545"]
[BlackElo "1654"]
[Annotator "NA RC"]
[PlyCount "85"]
[EventDate "2019.12.19"]
[EventType "team-tourn"]
[EventCountry "CHN"]
[SourceTitle "playchess.com"]
[Source "ChessBase"]
[SourceQuality "1"]
[WhiteTeam "China"]
[BlackTeam "Malaysia"]
[WhiteTeamCountry "CHN"]
[BlackTeamCountry "MAS"]
[TimeControl "5400+30"]

1. e4 {[%emt 0:00:00]} c5 {[%emt 0:00:00]} 2. c3 {[%emt 0:00:00]} d5 {[%emt 0:00:00]} 3. exd5 Qxd5 {[%emt 0:00:00]} 4. d4 {[%emt 0:00:00]} Nc6 {[%emt 0:00:13]} 5. Nf3 {[%emt 0:00:09]} Bf5 {[%emt 0:00:07]} 6. Be2 {[%emt 0:01:17]} cxd4 {[%emt 0:00:36]} 7. cxd4 {[%emt 0:00:13]} Bxb1 {[%emt 0:00:37]} 8. Rxb1 {[%emt 0:01:25]} e6 {[%emt 0:00:07]} 9. a3 {[%emt 0:00:53]} Nf6 {[%emt 0:00:11]} 10. O-O {[%emt 0:02:16]} Bd6 {[%emt 0:01:13]} 11. Be3 {[%emt 0:01:47]} O-O {[%emt 0:00:57]} 12. Qd3 {[%emt 0:04:53]} Ne7 {[%emt 0:03:40]} 13. Bg5 {[%emt 0:03:37]} Nd7 {[%emt 0:04:18]} 14. b4 {[%emt 0:05:35]} Nf5 {[%emt 0:03:45]} 15. Bd1 {[%emt 0:01:36]} Ne5 {[%emt 0:06:51]} 16. Nxe5 {[%emt 0:01:52]} Bxe5 {[%emt 0:04:54]} 17. Bf3 {[%emt 0:00:51]} Qxd4 {[%emt 0:00:52]} 18. Qxd4 {[%emt 0:00:16]} Nxd4 {[%emt 0:00:33]} 19. Bxb7 {[%emt 0:00:28]} Rab8 {[%emt 0:00:05]} 20. Ba6 {[%emt 0:01:24]} h6 {[%emt 0:07:15]} 21. Be7 {[%emt 0:02:56]} Rfe8 {[%emt 0:00:10]} 22. Bc5 {[%emt 0:00:09]} Nb5 {[%emt 0:06:11]} 23. Bxb5 {[%emt 0:02:08]} Rxb5 {[%emt 0:00:53]} 24. a4 {[%emt 0:00:13]} Rb7 {[%emt 0:00:21]} 25. b5 {[%emt 0:00:45]} Rc8 {[%emt 0:02:08]} 26. Rfc1 {[%emt 0:02:52]} Rcb8 {[%emt 0:11:29]} 27. g3 {[%emt 0:01:55]} Bc7 {[%emt 0:13:32]} 28. Rb3 {[%emt 0:04:22]} Bb6 {[%emt 0:06:20]} 29. Bb4 {[%emt 0:01:36]} Bd4 {[%emt 0:04:26]} 30. Rd3 {[%emt 0:02:39]} e5 {[%emt 0:04:03]} 31. Rc6 {[%emt 0:03:03]} Rd8 {[%emt 0:09:53]} 32. Kf1 {[%emt 0:00:45]} Ra8 {[%emt 0:07:36]} 33. Ba5 {[%emt 0:03:14]} a6 {[%emt 0:02:39]} 34. b6 {[%emt 0:00:26]} Rab8 {[%emt 0:00:17]} 35. Rb3 {[%emt 0:00:17]} f6 {[%emt 0:00:41]} 36. Ke2 {[%emt 0:03:28]} Rd7 {[%emt 0:00:31]} 37. Rc7 {[%emt 0:00:57]} Rd5 {[%emt 0:00:32]} 38. b7 {[%emt 0:00:20]} Ba7 {[%emt 0:00:30]} 39. Bb6 {[%emt 0:00:30]} Bxb6 {[%emt 0:00:27]} 40. Rxb6 {[%emt 0:00:20]} a5 {[%emt 0:00:35]} 41. Rc8+ {[%emt 0:00:14]} Rd8 {[%emt 0:00:29]} 42. Rxd8+ {[%emt 0:00:06]} Rxd8 {[%emt 0:00:03]} 43. b8=Q {[%emt 0:00:14]} 1-0